fUSD/lending_fUSD_20240803
["ID","MTS","AMOUNT","RATE_DAILY","PERIOD"]
[334040465,1722700247355,-6482.55,0.0002012,2]
[334040467,1722700247366,-1289.2479952,0.0002012,2]
[334040469,1722700247376,-500.0,0.00024657,9]
[334040471,1722700247386,-511.14,0.00024657,9]
[334040473,1722700247396,-243.04057273,0.00024979,2]
[334040475,1722700247406,-1836.69666447,0.00024979,2]
[334040502,1722700247666,-3472.80616938,0.00025,11]
[334040505,1722700247679,-2465.66,0.00025,11]
[334040507,1722700247691,-5970.90789886,0.00025,11]
[334040509,1722700247702,-2760.42861849,0.00025,11]
[334040511,1722700247714,-635.0,0.00025,11]
[334040513,1722700247726,-616.11,0.00025,11]
[334040515,1722700247737,-270.03200005,0.00025,11]
[334040518,1722700247750,-1924.56,0.00025,11]
[334040530,1722700247863,-1298.83881192,0.00025,11]
[334040532,1722700247876,-361.27657176,0.00025,11]
[334040535,1722700247890,-1296.95824377,0.00025,11]
[334040537,1722700247902,-7834.9248763,0.00025,11]
[334040539,1722700247918,-174851.98447615,0.00025,11]
[334040541,1722700247930,-67547.86462407,0.00025,11]
[334040545,1722700247955,-500.0,0.00024657,9]
[334040547,1722700247965,-651549.99842341,0.00025,11]
[334040549,1722700247974,-26670.1315768,0.00025,2]
[334040553,1722700248010,-544423.0188775,0.00025,2]
[334040556,1722700248022,-26356.91978593,0.00025,2]
[334040558,1722700248034,-4330.58388,0.00025,2]
[334040560,1722700248046,-826.92353649,0.00025,2]
[334040562,1722700248057,-366.33656683,0.00025,2]
[334040564,1722700248071,-44513.20192145,0.00025,2]
[334040566,1722700248082,-647633.20442821,0.00025,2]
[334040616,1722700250078,-3151.5,0.00025,2]
[334040617,1722700250089,-110931.50000003,0.00025,2]
[334040618,1722700250100,-4607.26195242,0.00025,2]
[334040621,1722700250123,-3654.35053478,0.00025,2]
[334040623,1722700250134,-1325.20799028,0.00025,2]
[334040627,1722700250168,-205.75981917,0.0001924,2]
[334040629,1722700250178,-274.41000144,0.00024657,9]
[334040631,1722700250189,-225.58999856,0.00024657,9]
[334040633,1722700250198,-155.0,0.00024979,2]
[334040635,1722700250208,-4853.71094303,0.00025,2]
[334040637,1722700250219,-8571.89705668,0.00025,2]
[334040640,1722700250230,-40508.64796029,0.00025,2]
[334040642,1722700250241,-1564.47600514,0.00025,2]
[334040644,1722700250252,-422.24066894,0.00025,2]
[334040646,1722700250263,-12771.99245784,0.00025,2]
[334040648,1722700250274,-1278.44042038,0.00025,2]
[334040650,1722700250285,-351.5147,0.00025,2]
[334040652,1722700250296,-1470.75,0.00025,2]
[334040654,1722700250307,-432.27653367,0.00025,2]
[334040656,1722700250321,-660.0,0.00025,2]
[334040659,1722700250332,-4441.98037548,0.00025,2]
[334040661,1722700250343,-1689.57717869,0.00025,2]
[334040663,1722700250355,-2318.42279138,0.00025,2]
[334040665,1722700250365,-380396.90297018,0.00025,2]
[334040667,1722700250376,-922.26269289,0.00025,2]
[334040669,1722700250387,-870.66039763,0.00025,2]
[334040671,1722700250398,-358.54738649,0.00025,2]
[334040673,1722700250408,-639.864,0.00025,2]
[334040675,1722700250419,-776.31930374,0.00025,2]
[334040677,1722700250431,-867.34614296,0.00025,2]
[334040680,1722700250441,-807.82052745,0.00025,2]
[334040682,1722700250452,-731.62006799,0.00025,2]
[334041366,1722700331210,60107.0,0.00018,30]
[334041745,1722701432442,-250.0,0.00011,2]
[334041746,1722701432452,-500.0,0.00011697,2]
[334041747,1722701432461,-283.0,0.00011797,2]
[334041748,1722701432471,-300.0,0.00011999,2]
[334041749,1722701432480,-300.0,0.00011999,2]
[334041750,1722701432489,-550.0,0.00012,2]
[334041751,1722701432498,-521.09077583,0.00012,2]
[334041752,1722701432509,-1259.03,0.00012,2]
[334041753,1722701432520,-471.37080258,0.00012,2]
[334041754,1722701432552,-2746.7848106,0.00012,2]
[334041755,1722701432562,-420.0,0.00013172,2]
[334041756,1722701432571,-600.0,0.00014,2]
[334041757,1722701432580,-587.0,0.0001446,2]
[334041758,1722701432589,-823.0,0.00015874,2]
[334041759,1722701432598,-633.99,0.00016781,2]
[334041760,1722701432608,-2935.90109735,0.00016781,7]
[334041761,1722701432617,-457.47269772,0.00016781,7]
[334041762,1722701432627,-404.0,0.000169,2]
[334041763,1722701432636,-499.99,0.0001726,2]
[334041764,1722701432646,-1198.72,0.0001726,2]
[334041765,1722701432655,-169.55,0.00017355,2]
[334041766,1722701432665,-1152.0,0.00017426,2]
[334041767,1722701432675,-155.0,0.00017739,2]
[334041768,1722701432685,-964.4,0.00017952,2]
[334041769,1722701432695,-227.60153513,0.00018,2]
[334041770,1722701432704,-692.66620014,0.00018,2]
[334041771,1722701432714,-1156.50133998,0.00018,2]
[334041772,1722701432726,-117.08309541,0.00018,2]
[334041773,1722701432736,-250.0,0.00018268,2]
[334041774,1722701432745,-455.0,0.0001913,2]
[334041775,1722701432755,-2727.16525437,0.00019176,2]
[334041776,1722701432765,-363.85697976,0.00019398,2]
[334041777,1722701432774,-297.22909311,0.00019398,2]
[334041778,1722701432784,-35697.33254384,0.0001945,2]
[334041779,1722701432794,-628.0054999,0.00019451,2]
[334041780,1722701432803,-300.0,0.00019452,2]
[334041781,1722701432814,-4801.70712308,0.00019599,2]
[334041782,1722701432834,-544.0998858,0.00019599,2]
[334041783,1722701432845,-2595.45439401,0.00019599,2]
[334041784,1722701432868,-533.92040024,0.00019599,2]
[334041785,1722701433047,-1529.05,0.00019599,2]
[334041787,1722701433075,-12632.39469021,0.00019599,2]
[334041789,1722701433088,-155.0,0.00019599,2]
[334041791,1722701433098,-385.34856534,0.00019725,2]
[334041793,1722701433109,-1725.0,0.00019899,2]
[334041794,1722701433119,-500.0,0.0002003,2]
[334041795,1722701433129,-155.28318094,0.00020109,2]
[334041796,1722701433138,-265.17493776,0.0002012,2]
[334041797,1722701433148,-155.0,0.0002012,2]
[334041798,1722701433158,-1245.75,0.00020173,2]
[334041799,1722701433168,-155.0,0.00020191,2]
[334041800,1722701433178,-500.0,0.00020251,2]
[334041801,1722701433188,-843.72,0.00020266,2]
[334041802,1722701433198,-25301.89520735,0.0002038,2]
[334041803,1722701433208,-23900.0,0.0002039,2]
[334041804,1722701433218,-502.31,0.00020426,2]
[334041805,1722701433228,-7000.0,0.00020588,3]
[334041806,1722701433238,-5000.0,0.00020899,2]
[334041807,1722701433248,-1404.85068933,0.00020999,2]
[334041808,1722701433259,-4510.2300586,0.00020999,3]
[334041809,1722701433269,-653.07757773,0.00020999,2]
[334041810,1722701433279,-10000.0,0.00021185,2]
[334041811,1722701433289,-271.68,0.00021596,3]
[334041812,1722701433298,-200.0,0.0002179,2]
[334041813,1722701433308,-351.29,0.00021918,2]
[334041814,1722701433318,-150.0,0.00021918,2]
[334041815,1722701433327,-271.03,0.00021977,2]
[334041816,1722701433337,-250.0,0.00021996,2]
[334041817,1722701433346,-182.4,0.0002203,2]
[334041818,1722701433356,-183.25,0.00022475,2]
[334041819,1722701433366,-150.0,0.00022495,2]
[334041820,1722701433375,-600.0,0.00022515,2]
[334041821,1722701433384,-502.31,0.0002269,2]
[334041822,1722701433394,-150.0,0.00023071,2]
[334041823,1722701433403,-171.36,0.00023075,2]
[334041824,1722701433413,-180.0,0.00023205,2]
[334041825,1722701433424,-154.44,0.00023307,2]
[334041826,1722701433433,-154.44,0.00023319,2]
[334041827,1722701433443,-154.44,0.0002333,2]
[334041828,1722701433453,-154.44,0.00023342,2]
[334041829,1722701433462,-985.4962,0.00023351,2]
[334041830,1722701433472,-182.67368608,0.00023351,2]
[334041831,1722701433481,-154.44,0.00023354,2]
[334041832,1722701433490,-154.44,0.00023365,2]
[334041833,1722701433499,-154.44,0.00023377,2]
[334041834,1722701433509,-154.44,0.00023389,2]
[334041835,1722701433518,-154.44,0.000234,2]
[334041836,1722701433527,-154.44,0.00023412,2]
[334041837,1722701433537,-154.44,0.00023424,2]
[334041838,1722701433546,-719.34566812,0.00023451,2]
[334041839,1722701433555,-298.38594994,0.00023451,2]
[334041840,1722701433565,-155.577,0.00023494,2]
[334041841,1722701433574,-150.0,0.00023494,2]
[334041842,1722701433584,-370.765,0.00023494,2]
[334041843,1722701433593,-182.67368607,0.00023523,2]
[334041844,1722701433603,-150.0,0.00023648,2]
[334041845,1722701433613,-182.67368607,0.00023695,2]
[334041846,1722701433623,-500.0,0.00023716,2]
[334041847,1722701433632,-182.67368607,0.00023867,2]
[334041848,1722701433642,-3401.38185264,0.00023873,2]
[334041849,1722701433656,-3401.38185264,0.00023873,2]
[334041850,1722701433665,-1112.40214539,0.00023873,2]
[334041851,1722701433676,-1183.97736117,0.00023873,2]
[334041852,1722701433687,-4958.62465599,0.00023873,2]
[334041853,1722701433697,-200.79516484,0.00023873,2]
[334041854,1722701433707,-1894.14166441,0.00023873,2]
[334041855,1722701433717,-155.0,0.00023873,2]
[334041856,1722701433726,-2000.0,0.00024,2]
[334041857,1722701433736,-2000.0,0.00024,2]
[334041858,1722701433746,-2000.0,0.00024,2]
[334041859,1722701433756,-2000.0,0.00024,2]
[334041860,1722701433765,-150.0,0.00024016,120]
[334041861,1722701433775,-185.6,0.0002403,2]
[334041862,1722701433785,-182.67368607,0.00024039,2]
[334041863,1722701433795,-1297.13015026,0.00024124,2]
[334041864,1722701433805,-347.37102947,0.00024124,2]
[334041865,1722701433815,-1137.94693277,0.00024124,2]
[334041866,1722701433825,-623.71061385,0.00024124,2]
[334041867,1722701433835,-1274.49304289,0.00024124,2]
[334041868,1722701433844,-155.0,0.00024124,2]
[334041869,1722701433853,-2144.08330696,0.00024124,2]
[334041870,1722701433863,-270.32721242,0.00024124,2]
[334041871,1722701433873,-264.27285274,0.00024124,2]
[334041872,1722701433884,-722.78328973,0.00024124,2]
[334041873,1722701433894,-1622.19894296,0.00024124,2]
[334041874,1722701433904,-182.67368607,0.00024212,2]
[334041875,1722701433914,-150.0,0.00024225,2]
[334041876,1722701433924,-761.0,0.00024259,2]
[334041877,1722701433933,-500.0,0.00024315,2]
[334041878,1722701433943,-182.67368607,0.00024384,2]
[334041879,1722701433953,-1150.0,0.000244,2]
[334041880,1722701433963,-1000.0,0.00024418,2]
[334041881,1722701433974,-761.0,0.00024509,2]
[334041882,1722701433984,-10570.0,0.00024552,2]
[334041883,1722701433994,-182.67368607,0.00024556,2]
[334041884,1722701434004,-500.0,0.00024657,9]
[334041885,1722701434014,-500.0,0.00024657,9]
[334041886,1722701434023,-328.17,0.00024657,9]
[334041887,1722701434038,-407.57011093,0.00024657,9]
[334041888,1722701434048,-500.0,0.00024657,9]
[334041889,1722701434057,-500.0,0.00024657,9]
[334041890,1722701434070,-500.0,0.00024657,9]
[334041891,1722701434080,-500.0,0.00024657,9]
[334041892,1722701434089,-500.0,0.00024657,9]
[334041893,1722701434098,-500.0,0.00024657,9]
[334041894,1722701434108,-500.0,0.00024657,9]
[334041895,1722701434117,-170.13,0.00024657,9]
[334041896,1722701434127,-500.0,0.00024657,9]
[334041897,1722701434136,-351.80743059,0.00024657,9]
[334041898,1722701434146,-500.0,0.00024657,9]
[334041899,1722701434155,-316.64,0.00024657,9]
[334041900,1722701434165,-579.71,0.00024657,9]
[334041901,1722701434175,-500.0,0.00024657,9]
[334041902,1722701434184,-500.0,0.00024657,9]
[334041903,1722701434194,-626.75,0.00024657,9]
[334041904,1722701434204,-500.0,0.00024657,9]
[334041905,1722701434213,-476.42,0.00024657,9]
[334041906,1722701434223,-500.0,0.00024657,9]
[334041907,1722701434232,-500.0,0.00024657,9]
[334041908,1722701434242,-468.31,0.00024657,9]
[334041909,1722701434251,-151.22989054,0.00024657,9]
[334041910,1722701434260,-500.0,0.00024657,9]
[334041911,1722701434269,-157.47646332,0.00024657,9]
[334041912,1722701434278,-632.08,0.00024657,9]
[334041913,1722701434288,-500.0,0.00024657,9]
[334041914,1722701434297,-237.8,0.00024657,9]
[334041915,1722701434307,-500.0,0.00024657,9]
[334041916,1722701434316,-521.68,0.00024657,9]
[334041917,1722701434326,-2500.0,0.00024666,2]
[334041918,1722701434335,-792.22198707,0.000247,4]
[334041919,1722701434345,-175.852,0.000247,2]
[334041920,1722701434355,-1364.4906,0.000247,2]
[334041921,1722701434365,-792.22198706,0.000247,4]
[334041922,1722701434375,-177.38377426,0.00024701,2]
[334041923,1722701434385,-1500.46162738,0.00024701,2]
[334041924,1722701434395,-271.03,0.00024724,2]
[334041925,1722701434404,-182.67368607,0.00024728,2]
[334041926,1722701434414,-1000.0,0.0002475,10]
[334041927,1722701434424,-761.0,0.00024759,2]
[334041928,1722701434434,-500.0,0.00024765,9]
[334041929,1722701434444,-500.0,0.00024765,9]
[334041930,1722701434455,-500.0,0.00024765,9]
[334041931,1722701434464,-155.0,0.00024765,2]
[334041932,1722701434474,-200.0,0.00024773,2]
[334041933,1722701434483,-182.4,0.00024784,120]
[334041934,1722701434493,-153.61,0.0002479,2]
[334041935,1722701434503,-1000.0,0.0002479,15]
[334041936,1722701434513,-153.61,0.0002479,2]
[334041937,1722701434522,-153.61,0.0002479,2]
[334041938,1722701434532,-153.61,0.0002479,2]
[334041939,1722701434542,-153.61,0.0002479,2]
[334041940,1722701434551,-153.61,0.0002479,2]
[334041941,1722701434561,-153.61,0.0002479,2]
[334041942,1722701434571,-153.61,0.0002479,2]
[334041943,1722701434581,-153.61,0.0002479,2]
[334041944,1722701434591,-153.61,0.0002479,2]
[334041945,1722701434600,-153.61,0.0002479,2]
[334041946,1722701434610,-153.61,0.0002479,2]
[334041947,1722701434620,-153.61,0.0002479,2]
[334041948,1722701434630,-153.61,0.0002479,2]
[334041949,1722701434640,-153.61,0.0002479,2]
[334041950,1722701434650,-153.61,0.0002479,2]
[334041951,1722701434660,-153.61,0.0002479,2]
[334041952,1722701434671,-19657.88404479,0.00024797,2]
[334041953,1722701434682,-500.0,0.00024799,9]
[334041954,1722701434693,-500.0,0.00024799,9]
[334041955,1722701434703,-183.47,0.00024799,9]
[334041956,1722701434712,-500.0,0.00024799,9]
[334041957,1722701434722,-565.68,0.00024799,9]
[334041958,1722701434732,-500.0,0.00024799,9]
[334041959,1722701434742,-500.0,0.00024799,9]
[334041960,1722701434751,-166.18,0.00024799,9]
[334041961,1722701434761,-500.0,0.00024799,9]
[334041962,1722701434771,-500.0,0.00024799,9]
[334041963,1722701434781,-463.68,0.00024799,9]
[334041964,1722701434791,-500.0,0.00024799,9]
[334041965,1722701434800,-274.34,0.00024799,9]
[334041966,1722701434809,-500.0,0.00024799,9]
[334041967,1722701434819,-500.0,0.00024799,9]
[334041968,1722701434829,-500.0,0.00024799,9]
[334041969,1722701434839,-438.68,0.00024799,9]
[334041970,1722701434847,-500.0,0.00024799,9]
[334041971,1722701434858,-483.74,0.00024799,9]
[334041972,1722701434868,-500.0,0.00024799,9]
[334041973,1722701434877,-190.54,0.00024799,9]
[334041974,1722701434887,-500.0,0.00024799,9]
[334041975,1722701434897,-500.0,0.00024799,9]
[334041976,1722701434907,-491.47,0.00024799,9]
[334041977,1722701434917,-500.0,0.00024799,9]
[334041978,1722701434927,-500.0,0.00024799,9]
[334041979,1722701434936,-500.0,0.00024799,9]
[334041980,1722701434946,-623.13,0.00024799,9]
[334041981,1722701434955,-500.0,0.00024799,9]
[334041982,1722701434964,-500.0,0.00024799,9]
[334041983,1722701434974,-281.12,0.00024799,9]
[334041984,1722701434984,-500.0,0.00024799,9]
[334041985,1722701434995,-500.0,0.00024799,9]
[334041986,1722701435005,-500.0,0.00024799,9]
[334041987,1722701435015,-500.0,0.00024799,9]
[334041988,1722701435025,-500.0,0.00024799,9]
[334041989,1722701435039,-500.0,0.00024799,9]
[334041990,1722701435048,-500.0,0.00024799,9]
[334041991,1722701435061,-244.46,0.00024799,9]
[334041992,1722701435071,-500.0,0.00024799,9]
[334041993,1722701435080,-500.0,0.00024799,9]
[334041994,1722701435090,-616.19,0.00024799,9]
[334041995,1722701435099,-500.0,0.00024799,9]
[334041996,1722701435109,-388.70702063,0.00024799,9]
[334041997,1722701435118,-500.0,0.00024799,9]
[334041998,1722701435128,-500.0,0.00024799,9]
[334041999,1722701435138,-500.0,0.00024799,9]
[334042000,1722701435147,-500.0,0.00024799,9]
[334042001,1722701435157,-500.0,0.00024799,9]
[334042002,1722701435166,-500.0,0.00024799,9]
[334042003,1722701435176,-500.0,0.00024799,9]
[334042004,1722701435186,-515.64547282,0.00024799,9]
[334042005,1722701435196,-538.79,0.00024799,9]
[334042006,1722701435206,-538.79,0.00024799,9]
[334042007,1722701435216,-538.79,0.00024799,9]
[334042008,1722701435226,-538.79,0.00024799,9]
[334042009,1722701435236,-538.79,0.00024799,9]
[334042010,1722701435245,-538.79,0.00024799,9]
[334042011,1722701435255,-538.79,0.00024799,9]
[334042012,1722701435265,-500.0,0.00024799,9]
[334042013,1722701435277,-538.79,0.00024799,9]
[334042014,1722701435289,-538.79,0.00024799,9]
[334042015,1722701435304,-150.1,0.00024799,9]
[334042016,1722701435314,-538.79,0.00024799,9]
[334042017,1722701435324,-538.79,0.00024799,9]
[334042018,1722701435335,-538.79,0.00024799,9]
[334042019,1722701435345,-538.79,0.00024799,9]
[334042020,1722701435355,-538.79,0.00024799,9]
[334042021,1722701435364,-538.79,0.00024799,9]
[334042022,1722701435377,-538.79,0.00024799,9]
[334042023,1722701435387,-538.79,0.00024799,9]
[334042024,1722701435397,-638.48327797,0.00024799,9]
[334042025,1722701435407,-538.79,0.00024799,9]
[334042026,1722701435416,-538.79,0.00024799,9]
[334042027,1722701435426,-538.79,0.00024799,9]
[334042028,1722701435436,-538.79,0.00024799,9]
[334042029,1722701435446,-538.79,0.00024799,9]
[334042030,1722701435456,-538.79,0.00024799,9]
[334042031,1722701435466,-538.86,0.00024799,9]
[334042032,1722701435476,-500.0,0.00024799,9]
[334042033,1722701435486,-500.0,0.00024799,9]
[334042034,1722701435496,-310.27,0.00024799,9]
[334042035,1722701435505,-500.0,0.00024799,9]
[334042036,1722701435515,-500.0,0.00024799,9]
[334042037,1722701435525,-500.0,0.00024799,9]
[334042038,1722701435544,-500.0,0.00024799,9]
[334042039,1722701435555,-500.0,0.00024799,9]
[334042040,1722701435565,-500.0,0.00024799,9]
[334042041,1722701435575,-500.0,0.00024799,9]
[334042042,1722701435585,-500.0,0.00024799,9]
[334042043,1722701435595,-500.0,0.00024799,9]
[334042044,1722701435605,-500.0,0.00024799,9]
[334042045,1722701435615,-500.0,0.00024799,9]
[334042046,1722701435625,-625.04,0.00024799,9]
[334042047,1722701435635,-500.0,0.00024799,9]
[334042048,1722701435645,-152.60249699,0.00024799,9]
[334042049,1722701435655,-500.0,0.00024799,9]
[334042050,1722701435665,-500.0,0.00024799,9]
[334042051,1722701435675,-450.35,0.00024799,9]
[334042052,1722701435685,-500.0,0.00024799,9]
[334042053,1722701435695,-500.0,0.00024799,9]
[334042054,1722701435706,-480.73245613,0.00024799,9]
[334042055,1722701435716,-500.0,0.00024799,9]
[334042056,1722701435726,-500.0,0.00024799,9]
[334042057,1722701435735,-644.97,0.00024799,9]
[334042058,1722701435745,-500.43497063,0.00024799,9]
[334042059,1722701435755,-500.0,0.00024799,9]
[334042060,1722701435765,-500.0,0.00024799,9]
[334042061,1722701435775,-500.0,0.00024799,9]
[334042062,1722701435785,-500.0,0.00024799,9]
[334042063,1722701435796,-500.0,0.00024799,9]
[334042064,1722701435806,-500.0,0.00024799,9]
[334042065,1722701435815,-395.06,0.00024799,9]
[334042066,1722701435825,-500.0,0.00024799,9]
[334042067,1722701435834,-500.0,0.00024799,9]
[334042068,1722701435844,-461.90698005,0.00024799,9]
[334042069,1722701435853,-221.21788933,0.00024799,9]
[334042070,1722701435862,-500.0,0.00024799,9]
[334042071,1722701435872,-500.0,0.00024799,9]
[334042072,1722701435881,-500.0,0.00024799,9]
[334042073,1722701435890,-500.0,0.00024799,9]
[334042074,1722701435900,-500.0,0.00024799,9]
[334042075,1722701435910,-500.0,0.00024799,9]
[334042076,1722701435919,-500.0,0.00024799,9]
[334042077,1722701436196,-500.0,0.00024799,9]
[334042078,1722701436207,-500.0,0.00024799,9]
[334042079,1722701436217,-276.13,0.00024799,9]
[334042080,1722701436227,-488.54740481,0.00024799,9]
[334042081,1722701436236,-500.0,0.00024799,9]
[334042082,1722701436246,-500.0,0.00024799,9]
[334042083,1722701436256,-500.0,0.00024799,9]
[334042084,1722701436266,-500.0,0.00024799,9]
[334042085,1722701436275,-500.0,0.00024799,9]
[334042086,1722701436286,-500.0,0.00024799,9]
[334042087,1722701436295,-500.0,0.00024799,9]
[334042088,1722701436305,-500.0,0.00024799,9]
[334042089,1722701436314,-500.0,0.00024799,9]
[334042090,1722701436323,-500.0,0.00024799,9]
[334042091,1722701436332,-500.0,0.00024799,9]
[334042092,1722701436342,-500.0,0.00024799,9]
[334042093,1722701436352,-500.0,0.00024799,9]
[334042094,1722701436362,-500.0,0.00024799,9]
[334042095,1722701436371,-500.0,0.00024799,9]
[334042096,1722701436381,-500.0,0.00024799,9]
[334042097,1722701436390,-500.0,0.00024799,9]
[334042098,1722701436400,-444.16,0.00024799,9]
[334042099,1722701436409,-374.85908772,0.00024799,9]
[334042100,1722701436419,-370.36199947,0.00024799,9]
[334042101,1722701436428,-470.33530894,0.00024799,9]
[334042102,1722701436437,-500.0,0.00024799,9]
[334042103,1722701436447,-500.0,0.00024799,9]
[334042104,1722701436457,-500.0,0.00024799,9]
[334042105,1722701436466,-500.0,0.00024799,9]
[334042106,1722701436475,-500.0,0.00024799,9]
[334042107,1722701436485,-500.0,0.00024799,9]
[334042108,1722701436494,-359.34,0.00024799,9]
[334042109,1722701436503,-273058.00492628,0.000248,11]
[334042110,1722701436519,-3060.0,0.000248,11]
[334042111,1722701436530,-621.31781712,0.000248,11]
[334042113,1722701438720,-363.85697976,0.00019387,2]
[334042114,1722701438730,-272.08032004,0.00019999,2]
[334042116,1722701439002,-609.68908,0.00019999,2]
[334042118,1722701439015,-305.18,0.00019999,2]
[334042121,1722701439029,-253.33008332,0.00019999,2]
[334042123,1722701439043,-9085.29061877,0.00019999,2]
[334042125,1722701439053,-212.02,0.0002038,3]
[334042127,1722701439063,-5399.26968187,0.00020899,2]
[334042129,1722701439077,-719.34566812,0.00020999,2]
[334042131,1722701439087,-424.04,0.0002175,3]
[334042133,1722701439097,-168.84568164,0.00022132,2]
[334042135,1722701439109,-187.80479493,0.00022132,2]
[334042137,1722701439119,-155.0,0.00024124,2]
[334042139,1722701439129,-3118.19667245,0.00024124,2]
[334042141,1722701439138,-140454.1499191,0.000248,11]
[334042143,1722701439150,-1264.41152,0.000248,11]
[334042145,1722701439162,-815.0,0.000248,11]
[334042147,1722701439173,-61000.0,0.000248,11]
[334042149,1722701439185,-574.98736815,0.000248,11]
[334042151,1722701439197,-1.09370564,0.000248,11]
[334042153,1722701439207,-1242.10521367,0.000248,5]
[334042156,1722701439218,-2520.4286712,0.000248,5]
[334042158,1722701439229,-21840.0,0.000248,5]
[334042160,1722701439240,-2939.9999999,0.000248,5]
[334042162,1722701439252,-4336.55827861,0.000248,5]
[334042164,1722701439263,-2003.26918081,0.000248,5]
[334042167,1722701439275,-5436.22455388,0.000248,5]
[334042169,1722701439293,-1427.90800748,0.000248,5]
[334042171,1722701439308,-16331.1101743,0.000248,5]
[334042174,1722701439323,-4295.9824655,0.000248,5]
[334042176,1722701439338,-333.49437701,0.000248,5]
[334042292,1722701440417,-1120.07585,0.00019725,2]
[334042304,1722701440527,-275.38822405,0.00019725,2]
[334042310,1722701440585,-329.53592595,0.00019725,2]
[334042312,1722701440595,-155.0,0.00023873,2]
[334042315,1722701440604,-202.71790408,0.00024124,2]
[334042317,1722701440614,-40.15100636,0.00024124,2]
[334042319,1722701440626,-514.84899364,0.00024124,2]
[334042321,1722701440636,-367.56511397,0.00024124,2]
[334042323,1722701440646,-3079.05538157,0.00024124,2]
[334042325,1722701440655,-176043.31270397,0.000248,5]
[334042327,1722701440668,-1794.5,0.000248,5]
[334042329,1722701440679,-3008.08311096,0.000248,5]
[334042333,1722701440708,-86745.99297918,0.000248,5]
[334042335,1722701440720,-1250.86617351,0.000248,5]
[334042346,1722701440820,-6112.3002,0.000248,5]
[334042348,1722701440832,-6117.8,0.000248,5]
[334042350,1722701440844,-643.23488832,0.000248,5]
[334042352,1722701440855,-533.09326322,0.000248,5]
[334042467,1722701443382,-544.61,0.00024799,9]
[334042468,1722701443392,-520.37874203,0.000248,5]
[334042469,1722701443422,-21986.27470492,0.000248,5]
[334042470,1722701443434,-10877.31968114,0.000248,5]
[334042471,1722701443446,-1201.87353666,0.000248,5]
[334042472,1722701443457,-3029060.66464316,0.000248,5]
[334042473,1722701443469,-450553.16874646,0.000248,5]
[334042474,1722701443480,-2627.76022133,0.000248,5]
[334042477,1722701443496,-1191.72024373,0.000248,5]
[334042479,1722701443507,-1130.13614157,0.000248,5]
[334042481,1722701443518,-1263.74,0.000248,5]
[334042482,1722701443536,-370.19267968,0.000248,5]
[334042483,1722701443553,-630.0,0.000248,5]
[334042562,1722701444850,-1430.7704735,0.000248,5]
[334042563,1722701444861,-11251.20641201,0.000248,5]
[334042564,1722701444872,-29371.2982155,0.000248,5]
[334042565,1722701444884,-10080.67868249,0.000248,5]
[334042566,1722701444899,-8000.0,0.000248,5]
[334042594,1722701446536,-188.46,0.00023972,2]
[334042596,1722701446545,-442.17,0.00024765,9]
[334042598,1722701446556,-57.83,0.00024765,9]
[334042600,1722701446565,-636.11,0.0002479,3]
[334042602,1722701446574,-119.00040191,0.00024799,9]
[334042604,1722701446585,-380.99959809,0.00024799,9]
[334042606,1722701446594,-500.0,0.00024799,9]